[Event "ENG-ch Women 2019"]
[Site "Hull"]
[Date "2019.09.01"]
[Round "4.7"]
[White "Denning, Julie L"]
[Black "Sheikh, Anum"]
[Result "1-0"]
[ECO "A50"]
[WhiteElo "1629"]
[BlackElo "1693"]
[Annotator "NA"]
[PlyCount "129"]
[EventDate "2019.08.30"]
[EventType "swiss"]
[EventCountry "ENG"]
[SourceTitle "playchess.com"]
[Source "ChessBase"]
[SourceQuality "1"]
[TimeControl "5400+30"]

1. d4 {[%emt 0:00:00]} Nf6 {[%emt 0:00:00]} 2. c4 {[%emt 0:00:00]} Nc6 {[%emt 0:00:00]} 3. Nc3 {[%emt 0:00:01]} e5 {[%emt 0:00:00]} 4. d5 {[%emt 0:01:56]} Ne7 {[%emt 0:00:00]} 5. e4 {[%emt 0:01:03]} Ng6 {[%emt 0:00:00]} 6. Nge2 {[%emt 0:02:20]} Bc5 {[%emt 0:00:16]} 7. h3 {[%emt 0:00:48]} d6 {[%emt 0:00:31]} 8. Ng3 {[%emt 0:09:40]} h5 {[%emt 0:05:56]} 9. Bg5 {[%emt 0:11:30]} h4 {[%emt 0:19:56]} 10. Nge2 {[%emt 0:08:03]} Rh5 {[%emt 0:12:16]} 11. Qd2 {[%emt 0:04:39]} Qe7 {[%emt 0:22:20]} 12. Be3 {[%emt 0:05:18]} Bb4 {[%emt 0:07:25]} 13. Qc2 {[%emt 0:01:53]} Bd7 {[%emt 0:03:52]} 14. a3 {[%emt 0:00:31]} Bxc3+ {[%emt 0:02:20]} 15. Nxc3 {[%emt 0:00:11]} Nf4 {[%emt 0:00:30]} 16. Qd2 {[%emt 0:06:53]} g5 {[%emt 0:01:40]} 17. g3 {[%emt 0:01:04]} hxg3 {[%emt 0:01:54]} 18. fxg3 {[%emt 0:01:55]} Nxh3 {[%emt 0:07:08]} 19. Bxh3 {[%emt 0:00:26]} Rxh3 {[%emt 0:03:04]} 20. Rxh3 {[%emt 0:00:35]} Bxh3 {[%emt 0:00:06]} 21. Bxg5 {[%emt 0:00:22]} O-O-O {[%emt 0:07:11]} 22. Qf2 {[%emt 0:00:30]} Ng4 {[%emt 0:00:47]} 23. Bxe7 {[%emt 0:02:06]} Nxf2 {[%emt 0:00:24]} 24. Kxf2 {[%emt 0:02:36]} Re8 {[%emt 0:00:16]} 25. Bf6 {[%emt 0:00:33]} a6 {[%emt 0:00:16]} 26. Rh1 {[%emt 0:00:35]} Bd7 {[%emt 0:00:23]} 27. Rh8 {[%emt 0:00:54]} Rxh8 {[%emt 0:00:14]} 28. Bxh8 {[%emt 0:00:06]} f5 {[%emt 0:00:12]} 29. Kf3 {[%emt 0:02:36]} fxe4+ {[%emt 0:00:14]} 30. Nxe4 {[%emt 0:01:10]} Ba4 {[%emt 0:00:52]} 31. c5 {[%emt 0:02:08]} Kd7 {[%emt 0:00:11]} 32. cxd6 {[%emt 0:03:06]} cxd6 {[%emt 0:00:08]} 33. Nc3 {[%emt 0:02:02]} Bb3 {[%emt 0:00:10]} 34. Bf6 {[%emt 0:00:39]} b5 {[%emt 0:00:21]} 35. g4 {[%emt 0:10:51]} a5 {[%emt 0:00:18]} 36. Nxb5 {[%emt 0:02:58]} Bxd5+ {[%emt 0:00:05]} 37. Ke3 {[%emt 0:00:37]} Bf7 {[%emt 0:01:48]} 38. g5 {[%emt 0:02:50]} Bg6 {[%emt 0:00:26]} 39. Nc3 {[%emt 0:02:52]} Ke6 {[%emt 0:00:11]} 40. Bd8 {[%emt 0:01:15]} d5 {[%emt 0:00:23]} 41. Nxd5 {[%emt 0:01:06]} Kxd5 {[%emt 0:00:19]} 42. Bxa5 {[%emt 0:00:11]} e4 {[%emt 0:00:37]} 43. Bd8 {[%emt 0:02:18]} Kc4 {[%emt 0:01:19]} 44. b4 {[%emt 0:00:54]} Kb5 {[%emt 0:00:06]} 45. Bf6 {[%emt 0:00:56]} Ka4 {[%emt 0:01:00]} 46. Bd4 {[%emt 0:00:52]} Kb5 {[%emt 0:02:31]} 47. Kf4 {[%emt 0:01:29]} Kc4 {[%emt 0:00:51]} 48. Bg1 {[%emt 0:00:32]} Be8 {[%emt 0:01:31]} 49. Kxe4 {[%emt 0:01:27]} Kb3 {[%emt 0:00:05]} 50. Bc5 {[%emt 0:00:59]} Kxa3 {[%emt 0:00:06]} 51. Ke5 {[%emt 0:00:22]} Ka4 {[%emt 0:00:23]} 52. Kf6 {[%emt 0:00:25]} Kb5 {[%emt 0:00:19]} 53. g6 {[%emt 0:00:10]} Bxg6 {[%emt 0:00:04]} 54. Kxg6 {[%emt 0:00:06]} Kc6 {[%emt 0:00:11]} 55. Kf6 {[%emt 0:00:19]} Kb5 {[%emt 0:00:23]} 56. Ke6 {[%emt 0:00:34]} Kc6 {[%emt 0:00:06]} 57. Ke7 {[%emt 0:00:25]} Kc7 {[%emt 0:00:42]} 58. b5 {[%emt 0:01:35]} Kb7 {[%emt 0:00:09]} 59. Kd7 {[%emt 0:00:56]} Kb8 {[%emt 0:00:16]} 60. Kc6 {[%emt 0:00:37]} Kc8 {[%emt 0:00:08]} 61. b6 {[%emt 0:00:20]} Kb8 {[%emt 0:00:09]} 62. Bd6+ {[%emt 0:00:19]} Ka8 {[%emt 0:00:07]} 63. b7+ {[%emt 0:00:13]} Ka7 {[%emt 0:00:04]} 64. b8=Q+ {[%emt 0:00:40]} Ka6 {[%emt 0:00:01]} 65. Qb6# {[%emt 0:00:14]} 1-0

[Event "ENG-ch Women 2019"]
[Site "Hull"]
[Date "2019.09.01"]
[Round "4.8"]
[White "Jayawarna, Thisumi"]
[Black "Zhu, Yaoyao"]
[Result "0-1"]
[ECO "C58"]
[WhiteElo "1125"]
[BlackElo "1842"]
[Annotator "NA"]
[PlyCount "54"]
[EventDate "2019.08.30"]
[EventType "swiss"]
[EventCountry "ENG"]
[SourceTitle "playchess.com"]
[Source "ChessBase"]
[SourceQuality "1"]
[TimeControl "5400+30"]

1. e4 {[%emt 0:00:00]} e5 {[%emt 0:00:00]} 2. Nf3 {[%emt 0:00:00]} Nc6 {[%emt 0:00:00]} 3. Bc4 {[%emt 0:00:00]} Nf6 {[%emt 0:00:00]} 4. Ng5 {[%emt 0:00:00]} d5 {[%emt 0:00:00]} 5. exd5 {[%emt 0:00:00]} Na5 {[%emt 0:00:00]} 6. Bb5+ {[%emt 0:00:06]} c6 {[%emt 0:00:00]} 7. dxc6 {[%emt 0:00:05]} bxc6 {[%emt 0:00:00]} 8. Qf3 {[%emt 0:00:24]} Rb8 {[%emt 0:00:07]} 9. Bd3 {[%emt 0:01:47]} Bd6 {[%emt 0:17:54]} 10. Ne4 {[%emt 0:06:42]} Nxe4 {[%emt 0:00:43]} 11. Bxe4 {[%emt 0:01:05]} O-O {[%emt 0:01:08]} 12. O-O {[%emt 0:13:06]} f5 {[%emt 0:01:39]} 13. Bxc6 {[%emt 0:01:32]} Nxc6 {[%emt 0:00:05]} 14. Qxc6 {[%emt 0:00:46]} Bb7 {[%emt 0:02:02]} 15. Qc4+ {[%emt 0:03:07]} Kh8 {[%emt 0:00:08]} 16. d3 {[%emt 0:11:03]} Qf6 {[%emt 0:11:21]} 17. g3 {[%emt 0:11:17]} f4 {[%emt 0:10:50]} 18. Nd2 {[%emt 0:02:33]} Qf5 {[%emt 0:06:01]} 19. f3 {[%emt 0:20:19]} Qh3 {[%emt 0:20:13]} 20. g4 {[%emt 0:03:13]} Rfc8 {[%emt 0:00:56]} 21. Qf7 {[%emt 0:01:29]} Bc5+ {[%emt 0:00:13]} 22. Rf2 {[%emt 0:01:39]} Bxf3 {[%emt 0:01:03]} 23. Nxf3 {[%emt 0:00:47]} Qxf3 {[%emt 0:00:06]} 24. Bd2 {[%emt 0:00:36]} Bxf2+ {[%emt 0:00:41]} 25. Kf1 {[%emt 0:00:54]} Be3+ {[%emt 0:00:13]} 26. Ke1 {[%emt 0:00:36]} Qf2+ {[%emt 0:00:07]} 27. Kd1 {[%emt 0:00:08]} Qxd2# {[%emt 0:00:02]} 0-1

[Event "ENG-ch Women 2019"]
[Site "Hull"]
[Date "2019.09.01"]
[Round "4.10"]
[White "Jaufarally, Zahra"]
[Black "Kumaar, Sai Chinmayee N"]
[Result "1/2-1/2"]
[ECO "D07"]
[WhiteElo "1371"]
[BlackElo "1622"]
[Annotator "NA"]
[PlyCount "59"]
[EventDate "2019.08.30"]
[EventType "swiss"]
[EventCountry "ENG"]
[SourceTitle "playchess.com"]
[Source "ChessBase"]
[SourceQuality "1"]
[TimeControl "5400+30"]

1. d4 {[%emt 0:00:00]} d5 {[%emt 0:00:00]} 2. Nf3 {[%emt 0:00:00]} Nc6 {[%emt 0:00:00]} 3. c4 {[%emt 0:02:47]} e6 {[%emt 0:00:00]} 4. c5 {[%emt 0:03:21]} Be7 {[%emt 0:00:15]} 5. Nc3 {[%emt 0:02:18]} a6 {[%emt 0:00:39]} 6. Bf4 {[%emt 0:01:48]} Nf6 {[%emt 0:00:59]} 7. e3 {[%emt 0:06:18]} Bd7 {[%emt 0:00:32]} 8. Bd3 {[%emt 0:03:50]} h6 {[%emt 0:01:47]} 9. h3 {[%emt 0:01:54]} b6 {[%emt 0:06:17]} 10. cxb6 {[%emt 0:06:37]} cxb6 {[%emt 0:00:20]} 11. a3 {[%emt 0:00:07]} b5 {[%emt 0:05:21]} 12. b4 {[%emt 0:00:12]} Qc8 {[%emt 0:02:37]} 13. Rc1 {[%emt 0:01:31]} Qb7 {[%emt 0:01:30]} 14. O-O {[%emt 0:02:18]} O-O {[%emt 0:00:32]} 15. Ne5 {[%emt 0:01:19]} Kh8 {[%emt 0:11:28]} 16. Bb1 {[%emt 0:12:30]} Nxe5 {[%emt 0:10:34]} 17. dxe5 {[%emt 0:00:21]} Ng8 {[%emt 0:00:56]} 18. e4 {[%emt 0:01:33]} Bc6 {[%emt 0:00:59]} 19. Qd3 {[%emt 0:02:49]} dxe4 {[%emt 0:01:05]} 20. Nxe4 {[%emt 0:00:10]} Bxe4 {[%emt 0:00:26]} 21. Qxe4 {[%emt 0:00:05]} Qxe4 {[%emt 0:00:09]} 22. Bxe4 {[%emt 0:00:04]} Ra7 {[%emt 0:02:34]} 23. Rfd1 {[%emt 0:02:03]} Rd8 {[%emt 0:01:53]} 24. Rxd8 {[%emt 0:00:30]} Bxd8 {[%emt 0:00:12]} 25. Rd1 {[%emt 0:00:27]} Be7 {[%emt 0:02:07]} 26. Be3 {[%emt 0:01:21]} Rc7 {[%emt 0:00:55]} 27. Rc1 {[%emt 0:06:19]} Rd7 {[%emt 0:02:28]} 28. Bf3 {[%emt 0:00:18]} Rd3 {[%emt 0:06:00]} 29. Ra1 {[%emt 0:00:07]} Rd7 {[%emt 0:00:42]} 30. Rd1 {[%emt 0:00:16]} 1/2-1/2

[Event "ENG-ch Women 2019"]
[Site "Hull"]
[Date "2019.09.01"]
[Round "4.11"]
[White "Arora, Tashika"]
[Black "Maladkar, Ritika"]
[Result "1-0"]
[ECO "D02"]
[WhiteElo "1447"]
[BlackElo "1561"]
[Annotator "NA"]
[PlyCount "77"]
[EventDate "2019.08.30"]
[EventType "swiss"]
[EventCountry "ENG"]
[SourceTitle "playchess.com"]
[Source "ChessBase"]
[SourceQuality "1"]
[TimeControl "5400+30"]

1. d4 {[%emt 0:00:00]} d5 {[%emt 0:00:00]} 2. Nf3 {[%emt 0:00:00]} Nf6 {[%emt 0:00:00]} 3. Bf4 {[%emt 0:00:00]} e6 {[%emt 0:00:00]} 4. e3 {[%emt 0:00:00]} c5 {[%emt 0:00:00]} 5. Be2 {[%emt 0:00:39]} Be7 {[%emt 0:00:28]} 6. O-O {[%emt 0:00:09]} O-O {[%emt 0:00:25]} 7. c4 {[%emt 0:00:09]} Nc6 {[%emt 0:00:39]} 8. Nc3 {[%emt 0:00:10]} Nh5 {[%emt 0:01:40]} 9. Bg3 {[%emt 0:01:40]} Nxg3 {[%emt 0:00:32]} 10. hxg3 {[%emt 0:00:02]} b6 {[%emt 0:06:30]} 11. cxd5 {[%emt 0:00:37]} Nb4 {[%emt 0:05:25]} 12. dxe6 {[%emt 0:01:22]} Bxe6 {[%emt 0:00:20]} 13. a3 {[%emt 0:01:19]} Nd5 {[%emt 0:03:03]} 14. Nxd5 {[%emt 0:01:48]} Bxd5 {[%emt 0:00:45]} 15. Rc1 {[%emt 0:03:17]} Rc8 {[%emt 0:02:29]} 16. Ba6 {[%emt 0:06:59]} Rc6 {[%emt 0:01:39]} 17. Bb7 {[%emt 0:02:09]} Rh6 {[%emt 0:02:14]} 18. Bxd5 {[%emt 0:02:17]} Qxd5 {[%emt 0:00:32]} 19. dxc5 {[%emt 0:04:05]} Qxd1 {[%emt 0:06:14]} 20. Rfxd1 {[%emt 0:00:14]} Bxc5 {[%emt 0:08:03]} 21. b4 {[%emt 0:00:20]} Bd6 {[%emt 0:06:10]} 22. Nd4 {[%emt 0:01:54]} f5 {[%emt 0:07:24]} 23. Rc6 {[%emt 0:02:43]} Be5 {[%emt 0:07:54]} 24. Rxh6 {[%emt 0:00:38]} gxh6 {[%emt 0:00:19]} 25. Nc6 {[%emt 0:00:36]} Bb2 {[%emt 0:03:32]} 26. a4 {[%emt 0:01:09]} Rf7 {[%emt 0:04:44]} 27. Rd8+ {[%emt 0:01:31]} Kg7 {[%emt 0:00:28]} 28. Ra8 {[%emt 0:00:45]} Rc7 {[%emt 0:06:50]} 29. Rxa7 {[%emt 0:00:40]} Rxa7 {[%emt 0:00:32]} 30. Nxa7 {[%emt 0:00:02]} Bc3 {[%emt 0:00:34]} 31. Nc6 {[%emt 0:00:13]} Kf6 {[%emt 0:00:27]} 32. a5 {[%emt 0:00:20]} bxa5 {[%emt 0:01:37]} 33. bxa5 {[%emt 0:00:08]} Bxa5 {[%emt 0:00:27]} 34. Nxa5 {[%emt 0:00:05]} Kg5 {[%emt 0:01:31]} 35. Nc6 {[%emt 0:00:42]} Kg4 {[%emt 0:01:53]} 36. Kh2 {[%emt 0:00:46]} Kh5 {[%emt 0:01:39]} 37. Kh3 {[%emt 0:00:34]} Kg5 {[%emt 0:00:17]} 38. Ne7 {[%emt 0:00:38]} Kh5 {[%emt 0:01:09]} 39. Nxf5 {[%emt 0:00:24]} 1-0

[Event "ENG-ch Women 2019"]
[Site "Hull"]
[Date "2019.09.01"]
[Round "4.12"]
[White "Boztas, Lana"]
[Black "Gamal, Alaa"]
[Result "1/2-1/2"]
[ECO "A37"]
[WhiteElo "1475"]
[BlackElo "1762"]
[Annotator "NA"]
[PlyCount "136"]
[EventDate "2019.08.30"]
[EventType "swiss"]
[EventCountry "ENG"]
[SourceTitle "playchess.com"]
[Source "ChessBase"]
[SourceQuality "1"]
[TimeControl "5400+30"]

1. c4 {[%emt 0:00:00]} c5 {[%emt 0:00:00]} 2. Nc3 {[%emt 0:00:00]} g6 {[%emt 0:00:00]} 3. g3 {[%emt 0:00:01]} Bg7 {[%emt 0:00:02]} 4. Bg2 {[%emt 0:00:07]} Nc6 {[%emt 0:00:06]} 5. Nf3 {[%emt 0:00:42]} e6 {[%emt 0:00:30]} 6. d3 {[%emt 0:00:49]} Nge7 {[%emt 0:00:09]} 7. O-O {[%emt 0:00:42]} d5 {[%emt 0:01:20]} 8. cxd5 {[%emt 0:01:52]} exd5 {[%emt 0:00:01]} 9. Qa4 {[%emt 0:13:46]} O-O {[%emt 0:00:38]} 10. Bg5 {[%emt 0:01:41]} h6 {[%emt 0:00:27]} 11. Bf4 {[%emt 0:00:53]} g5 {[%emt 0:01:17]} 12. Bd2 {[%emt 0:00:07]} Bf5 {[%emt 0:03:51]} 13. Rab1 {[%emt 0:12:47]} Qd7 {[%emt 0:01:51]} 14. Rfe1 {[%emt 0:01:52]} Rae8 {[%emt 0:04:56]} 15. e4 {[%emt 0:04:32]} Bh7 {[%emt 0:10:36]} 16. Rbd1 {[%emt 0:04:06]} d4 {[%emt 0:21:18]} 17. Nb1 {[%emt 0:03:55]} Kh8 {[%emt 0:05:53]} 18. b4 {[%emt 0:02:27]} cxb4 {[%emt 0:06:49]} 19. Bxb4 {[%emt 0:00:22]} b5 {[%emt 0:00:09]} 20. Qa3 {[%emt 0:00:40]} Nxb4 {[%emt 0:01:50]} 21. Qxb4 {[%emt 0:00:07]} a6 {[%emt 0:03:20]} 22. Na3 {[%emt 0:01:03]} Nc6 {[%emt 0:01:11]} 23. Qb2 {[%emt 0:00:49]} f5 {[%emt 0:01:18]} 24. Nd2 {[%emt 0:02:49]} Ne5 {[%emt 0:07:48]} 25. Qb1 {[%emt 0:01:21]} f4 {[%emt 0:00:33]} 26. f3 {[%emt 0:02:21]} fxg3 {[%emt 0:00:48]} 27. hxg3 {[%emt 0:00:07]} Bg8 {[%emt 0:01:31]} 28. Rf1 {[%emt 0:02:31]} Be6 {[%emt 0:00:41]} 29. Nb3 {[%emt 0:01:48]} Bh3 {[%emt 0:02:13]} 30. Nc5 {[%emt 0:02:00]} Qc8 {[%emt 0:01:45]} 31. Rc1 {[%emt 0:00:57]} Bxg2 {[%emt 0:00:57]} 32. Kxg2 {[%emt 0:00:04]} Qa8 {[%emt 0:01:06]} 33. Qb3 {[%emt 0:02:59]} Rf6 {[%emt 0:00:49]} 34. Nc2 {[%emt 0:07:00]} Rc8 {[%emt 0:06:19]} 35. Nxd4 {[%emt 0:03:13]} Rd6 {[%emt 0:06:12]} 36. Nf5 {[%emt 0:01:45]} Rf6 {[%emt 0:05:30]} 37. d4 {[%emt 0:02:30]} Nf7 {[%emt 0:01:01]} 38. Nxg7 {[%emt 0:01:01]} Kxg7 {[%emt 0:00:08]} 39. Ne6+ {[%emt 0:03:31]} Kg8 {[%emt 0:00:54]} 40. Rc5 {[%emt 0:00:49]} Rxc5 {[%emt 0:00:31]} 41. Nxc5 {[%emt 0:00:05]} Qa7 {[%emt 0:01:12]} 42. e5 {[%emt 0:03:56]} Rc6 {[%emt 0:01:28]} 43. Re1 {[%emt 0:03:42]} Qe7 {[%emt 0:01:33]} 44. Qd5 {[%emt 0:00:52]} Rb6 {[%emt 0:00:44]} 45. Re4 {[%emt 0:03:38]} Kh7 {[%emt 0:00:26]} 46. Nd7 {[%emt 0:01:00]} Rg6 {[%emt 0:00:20]} 47. Nf6+ {[%emt 0:00:15]} Kg7 {[%emt 0:00:15]} 48. Qa8 {[%emt 0:03:13]} Nd8 {[%emt 0:00:55]} 49. Qxa6 {[%emt 0:00:32]} Qb4 {[%emt 0:00:16]} 50. Qa7+ {[%emt 0:00:49]} Kf8 {[%emt 0:00:24]} 51. Qc5+ {[%emt 0:02:40]} Qxc5 {[%emt 0:00:04]} 52. dxc5 {[%emt 0:00:04]} Nc6 {[%emt 0:00:35]} 53. Nd7+ {[%emt 0:01:13]} Ke7 {[%emt 0:00:06]} 54. Nb6 {[%emt 0:00:18]} Ke6 {[%emt 0:00:26]} 55. Kf2 {[%emt 0:01:35]} Nxe5 {[%emt 0:00:23]} 56. Rd4 {[%emt 0:01:24]} Ke7 {[%emt 0:01:00]} 57. Nc8+ {[%emt 0:00:12]} Kf7 {[%emt 0:00:30]} 58. Rd5 {[%emt 0:00:30]} Nc6 {[%emt 0:00:37]} 59. Rf5+ {[%emt 0:00:40]} Ke6 {[%emt 0:00:24]} 60. g4 {[%emt 0:00:07]} Nd4 {[%emt 0:01:00]} 61. Rf8 {[%emt 0:00:12]} Kd7 {[%emt 0:00:36]} 62. Ke3 {[%emt 0:00:18]} Ne6 {[%emt 0:00:05]} 63. Nb6+ {[%emt 0:00:09]} Kc6 {[%emt 0:00:11]} 64. Rc8+ {[%emt 0:00:11]} Kb7 {[%emt 0:00:12]} 65. Re8 {[%emt 0:00:30]} Nxc5 {[%emt 0:00:24]} 66. Nd5 {[%emt 0:00:16]} Re6+ {[%emt 0:01:19]} 67. Rxe6 {[%emt 0:00:08]} Nxe6 {[%emt 0:00:06]} 68. Ke4 {[%emt 0:00:38]} Kc6 {[%emt 0:02:30]} 1/2-1/2

[Event "ENG-ch Women 2019"]
[Site "Hull"]
[Date "2019.09.01"]
[Round "4.13"]
[White "Sengenberger, Sara"]
[Black "Chaban, Roxolana"]
[Result "1-0"]
[ECO "B34"]
[WhiteElo "1570"]
[BlackElo "1281"]
[Annotator "NA"]
[PlyCount "89"]
[EventDate "2019.08.30"]
[EventType "swiss"]
[EventCountry "ENG"]
[SourceTitle "playchess.com"]
[Source "ChessBase"]
[SourceQuality "1"]
[TimeControl "5400+30"]

1. e4 {[%emt 0:00:00]} c5 {[%emt 0:00:00]} 2. Nf3 {[%emt 0:00:00]} g6 {[%emt 0:00:00]} 3. d4 {[%emt 0:00:00]} cxd4 {[%emt 0:00:00]} 4. Nxd4 {[%emt 0:00:12]} Bg7 {[%emt 0:00:26]} 5. Nc3 {[%emt 0:01:01]} Nc6 {[%emt 0:00:26]} 6. Be3 {[%emt 0:00:36]} Nf6 {[%emt 0:01:14]} 7. f3 {[%emt 0:01:36]} O-O {[%emt 0:01:43]} 8. Nxc6 {[%emt 0:03:15]} bxc6 {[%emt 0:01:47]} 9. Rb1 {[%emt 0:04:51]} d5 {[%emt 0:09:04]} 10. exd5 {[%emt 0:03:49]} Nxd5 {[%emt 0:03:40]} 11. Nxd5 {[%emt 0:03:40]} Qxd5 {[%emt 0:03:03]} 12. Qxd5 {[%emt 0:00:56]} cxd5 {[%emt 0:01:37]} 13. b3 {[%emt 0:06:25]} Bc3+ {[%emt 0:10:45]} 14. Kf2 {[%emt 0:00:27]} d4 {[%emt 0:04:39]} 15. Bh6 {[%emt 0:06:32]} Rd8 {[%emt 0:04:32]} 16. g4 {[%emt 0:04:05]} e5 {[%emt 0:02:54]} 17. Bg5 {[%emt 0:01:54]} Rd6 {[%emt 0:03:51]} 18. Bc4 {[%emt 0:02:06]} Kg7 {[%emt 0:02:52]} 19. Be7 {[%emt 0:06:33]} Rd7 {[%emt 0:03:09]} 20. Ba3 {[%emt 0:00:29]} Bb7 {[%emt 0:03:28]} 21. Rhd1 {[%emt 0:02:07]} f6 {[%emt 0:05:04]} 22. Bb2 {[%emt 0:03:41]} Bxb2 {[%emt 0:01:36]} 23. Rxb2 {[%emt 0:00:46]} a5 {[%emt 0:02:58]} 24. c3 {[%emt 0:01:38]} Bc6 {[%emt 0:06:40]} 25. cxd4 {[%emt 0:00:56]} Rxd4 {[%emt 0:00:56]} 26. Rxd4 {[%emt 0:00:45]} exd4 {[%emt 0:00:10]} 27. Bd3 {[%emt 0:04:08]} h6 {[%emt 0:03:27]} 28. Rc2 {[%emt 0:01:12]} Be8 {[%emt 0:01:56]} 29. Rc7+ {[%emt 0:01:29]} Kg8 {[%emt 0:01:37]} 30. Ke2 {[%emt 0:03:09]} a4 {[%emt 0:02:46]} 31. Bc4+ {[%emt 0:02:57]} Kh8 {[%emt 0:01:32]} 32. Kd3 {[%emt 0:03:53]} axb3 {[%emt 0:01:37]} 33. Bxb3 {[%emt 0:00:45]} Rd8 {[%emt 0:01:21]} 34. Rc5 {[%emt 0:03:50]} Bb5+ {[%emt 0:00:59]} 35. Rxb5 {[%emt 0:00:39]} Kg7 {[%emt 0:00:35]} 36. Rd5 {[%emt 0:01:43]} Rxd5 {[%emt 0:00:13]} 37. Bxd5 {[%emt 0:00:17]} Kf8 {[%emt 0:00:04]} 38. Kxd4 {[%emt 0:00:28]} Ke7 {[%emt 0:00:12]} 39. a4 {[%emt 0:00:41]} Kd8 {[%emt 0:00:10]} 40. h4 {[%emt 0:00:19]} Kc7 {[%emt 0:00:09]} 41. a5 {[%emt 0:00:22]} Kb8 {[%emt 0:00:08]} 42. a6 {[%emt 0:00:22]} Ka7 {[%emt 0:00:08]} 43. Bb7 {[%emt 0:00:27]} g5 {[%emt 0:00:13]} 44. h5 {[%emt 0:01:16]} Kb8 {[%emt 0:00:06]} 45. Ke4 {[%emt 0:00:20]} 1-0

[Event "ENG-ch Women 2019"]
[Site "Hull"]
[Date "2019.09.01"]
[Round "4.14"]
[White "Cakova, Monika"]
[Black "Headlong, Georgia"]
[Result "0-1"]
[ECO "A46"]
[WhiteElo "1150"]
[BlackElo "1482"]
[Annotator "NA"]
[PlyCount "68"]
[EventDate "2019.08.30"]
[EventType "swiss"]
[EventCountry "ENG"]
[SourceTitle "playchess.com"]
[Source "ChessBase"]
[SourceQuality "1"]
[TimeControl "5400+30"]

1. d4 {[%emt 0:00:02]} Nf6 {[%emt 0:00:00]} 2. Nf3 {[%emt 0:00:27]} e6 {[%emt 0:00:00]} 3. c3 {[%emt 0:00:38]} b6 {[%emt 0:00:26]} 4. e3 {[%emt 0:00:45]} Bb7 {[%emt 0:00:40]} 5. Bd3 {[%emt 0:00:49]} Be7 {[%emt 0:00:37]} 6. Nbd2 {[%emt 0:00:41]} d5 {[%emt 0:01:33]} 7. O-O {[%emt 0:00:38]} O-O {[%emt 0:00:34]} 8. Re1 {[%emt 0:00:39]} Ne4 {[%emt 0:01:14]} 9. Ne5 {[%emt 0:02:32]} f6 {[%emt 0:03:08]} 10. Nef3 {[%emt 0:04:19]} Nd7 {[%emt 0:02:36]} 11. Qc2 {[%emt 0:02:09]} f5 {[%emt 0:01:02]} 12. Ne5 {[%emt 0:05:23]} Bd6 {[%emt 0:02:21]} 13. Nxd7 {[%emt 0:01:28]} Qxd7 {[%emt 0:00:15]} 14. f4 {[%emt 0:02:50]} Nxd2 {[%emt 0:05:21]} 15. Bxd2 {[%emt 0:02:46]} c5 {[%emt 0:01:19]} 16. c4 {[%emt 0:03:25]} Rac8 {[%emt 0:02:27]} 17. Bc3 {[%emt 0:04:26]} cxd4 {[%emt 0:02:17]} 18. Bxd4 {[%emt 0:01:39]} dxc4 {[%emt 0:00:39]} 19. Bxc4 {[%emt 0:02:10]} b5 {[%emt 0:00:50]} 20. Bxe6+ {[%emt 0:02:59]} Qxe6 {[%emt 0:00:28]} 21. Qd3 {[%emt 0:02:46]} Qe4 {[%emt 0:02:56]} 22. Qb3+ {[%emt 0:01:14]} Bd5 {[%emt 0:00:23]} 23. Re2 {[%emt 0:03:16]} Bxb3 {[%emt 0:00:33]} 24. axb3 {[%emt 0:00:11]} Bc5 {[%emt 0:03:25]} 25. Be5 {[%emt 0:03:51]} Bxe3+ {[%emt 0:01:24]} 26. Kf1 {[%emt 0:01:22]} Rc2 {[%emt 0:01:49]} 27. Rd1 {[%emt 0:03:43]} Rxe2 {[%emt 0:01:12]} 28. Kxe2 {[%emt 0:01:07]} Bxf4+ {[%emt 0:01:50]} 29. Kf2 {[%emt 0:01:25]} Qe3+ {[%emt 0:00:44]} 30. Kf1 {[%emt 0:00:20]} Bxe5 {[%emt 0:00:23]} 31. Re1 {[%emt 0:00:17]} Qd3+ {[%emt 0:00:13]} 32. Re2 {[%emt 0:00:18]} Re8 {[%emt 0:00:37]} 33. Kf2 {[%emt 0:00:42]} Bd4+ {[%emt 0:00:11]} 34. Ke1 {[%emt 0:00:29]} Qxe2# {[%emt 0:00:44]} 0-1

[Event "ENG-ch Women 2019"]
[Site "Hull"]
[Date "2019.09.01"]
[Round "4.15"]
[White "Anika Rachna Roy"]
[Black "Jayawarna, Tarini"]
[Result "1/2-1/2"]
[ECO "E70"]
[WhiteElo "1380"]
[BlackElo "1337"]
[Annotator "NA"]
[PlyCount "91"]
[EventDate "2019.08.30"]
[EventType "swiss"]
[EventCountry "ENG"]
[SourceTitle "playchess.com"]
[Source "ChessBase"]
[SourceQuality "1"]
[TimeControl "5400+30"]

1. d4 {[%emt 0:00:00]} Nf6 {[%emt 0:00:00]} 2. c4 {[%emt 0:00:00]} g6 {[%emt 0:00:00]} 3. Nc3 {[%emt 0:00:00]} Bg7 {[%emt 0:00:00]} 4. e4 {[%emt 0:00:01]} d6 {[%emt 0:00:00]} 5. Nge2 {[%emt 0:01:08]} O-O {[%emt 0:00:00]} 6. Ng3 {[%emt 0:00:06]} e5 {[%emt 0:00:02]} 7. d5 {[%emt 0:00:06]} a5 {[%emt 0:00:55]} 8. Be2 {[%emt 0:00:19]} Na6 {[%emt 0:00:45]} 9. h4 {[%emt 0:00:26]} h5 {[%emt 0:00:40]} 10. Bg5 {[%emt 0:00:07]} Qe8 {[%emt 0:00:36]} 11. Qd2 {[%emt 0:08:22]} Nh7 {[%emt 0:01:20]} 12. O-O-O {[%emt 0:06:52]} Nc5 {[%emt 0:21:26]} 13. Nb5 {[%emt 0:09:18]} Qd7 {[%emt 0:36:24]} 14. Nc3 {[%emt 0:00:30]} f6 15. Be3 {[%emt 0:34:07]} b6 {[%emt 0:01:00]} 16. Nf1 {[%emt 0:08:01]} f5 {[%emt 0:06:57]} 17. exf5 {[%emt 0:00:13]} Qxf5 {[%emt 0:00:50]} 18. Ng3 {[%emt 0:00:13]} Qf7 {[%emt 0:02:21]} 19. Nge4 {[%emt 0:01:22]} Nxe4 {[%emt 0:04:14]} 20. Nxe4 {[%emt 0:00:27]} Bd7 {[%emt 0:06:23]} 21. Rdg1 {[%emt 0:03:43]} Bf5 {[%emt 0:05:13]} 22. Bd3 {[%emt 0:08:01]} b5 {[%emt 0:03:54]} 23. f3 {[%emt 0:03:12]} bxc4 {[%emt 0:01:22]} 24. Bxc4 {[%emt 0:00:06]} Rfb8 {[%emt 0:00:57]} 25. Qe2 {[%emt 0:03:18]} Qd7 {[%emt 0:00:38]} 26. Nc3 {[%emt 0:02:58]} e4 {[%emt 0:02:09]} 27. Bb5 {[%emt 0:01:13]} Qe7 {[%emt 0:01:31]} 28. f4 {[%emt 0:02:10]} Bd7 {[%emt 0:01:28]} 29. Bxd7 {[%emt 0:01:29]} Qxd7 {[%emt 0:00:02]} 30. Qd2 {[%emt 0:00:43]} Bxc3 {[%emt 0:00:45]} 31. Qxc3 {[%emt 0:00:07]} Qa4 {[%emt 0:00:14]} 32. Kb1 {[%emt 0:02:22]} Rb7 {[%emt 0:00:46]} 33. Rc1 {[%emt 0:00:59]} Rab8 {[%emt 0:00:25]} 34. Rc2 {[%emt 0:00:17]} Qb5 {[%emt 0:00:52]} 35. Rd1 {[%emt 0:00:53]} Qb4 {[%emt 0:00:15]} 36. Qd4 {[%emt 0:01:12]} Qxd4 {[%emt 0:00:47]} 37. Bxd4 {[%emt 0:00:07]} Rf8 {[%emt 0:00:39]} 38. Rdc1 {[%emt 0:01:04]} Rxf4 {[%emt 0:00:42]} 39. Rxc7 {[%emt 0:00:12]} Rxc7 {[%emt 0:00:26]} 40. Rxc7 {[%emt 0:00:03]} Rxh4 {[%emt 0:00:17]} 41. Rg7+ {[%emt 0:00:18]} Kf8 {[%emt 0:00:57]} 42. Rxh7 {[%emt 0:00:06]} Rh1+ {[%emt 0:00:35]} 43. Kc2 {[%emt 0:00:19]} Rh2 {[%emt 0:00:13]} 44. Rh8+ {[%emt 0:00:28]} Ke7 {[%emt 0:00:09]} 45. Rh7+ {[%emt 0:00:35]} Ke8 {[%emt 0:00:25]} 46. Rh8+ {[%emt 0:01:12]} 1/2-1/2